bitfinex/quotes_ETHUSD_20250629
["timestamp","ask_amount","ask_price","bid_price","bid_amount"]
[1751238024646,0.2167566,2512.9,2512.8,2.38777459]
[1751238024944,0.2167566,2512.9,2512.8,24.05941659]
[1751238025736,0.11485096,2512.9,2512.8,29.08041489]
[1751238025910,0.11485096,2512.9,2512.8,33.98451259]
[1751238026108,0.11485096,2512.9,2512.8,30.07308159]
[1751238026328,4.27112,2514.3,2513.0,42.93758456]
[1751238026759,0.266945,2513.1,2513.0,13.13758456]
[1751238027047,4.39584925,2514.9,2514.8,6.42859261]
[1751238027249,4.39584925,2514.9,2514.8,23.60059261]
[1751238027545,4.83543418,2514.9,2514.3,0.1926]
[1751238027752,1.0981,2514.8,2514.3,0.1926]
[1751238028269,5.54299056,2514.8,2514.3,0.1926]
[1751238028565,1.0981,2514.8,2514.3,0.1926]
[1751238028769,4.39584925,2514.9,2514.3,10.1926]
[1751238029060,4.39584925,2514.9,2514.6,2.38605215]
[1751238029278,4.39584925,2514.9,2514.5,7.192]
[1751238029279,4.83543418,2514.9,2514.5,7.192]
[1751238029462,4.83543418,2514.9,2514.3,0.1926]
[1751238029661,0.001,2514.7,2514.0,10.0]
[1751238029833,0.001,2514.7,2514.1,7.192]
[1751238030030,0.001,2514.7,2512.9,12.33461961]
[1751238030270,2.38623426,2514.5,2513.4,9.6311]
[1751238030565,0.001,2514.7,2513.7,0.55]
[1751238030866,0.001,2514.7,2513.9,10.0]
[1751238031067,0.001,2514.7,2514.1,0.55]
[1751238031232,0.001,2514.7,2514.6,2.38606537]
[1751238031435,0.001,2514.7,2514.6,9.60306537]
[1751238031629,0.001,2514.7,2514.5,2.38615552]
[1751238031861,0.001,2514.7,2514.4,7.219]
[1751238032064,0.001,2514.7,2513.2,10.0]
[1751238032234,0.1984,2514.5,2514.1,0.1984]
[1751238032435,0.46433804,2514.5,2514.3,2.38634136]
[1751238032640,0.001,2514.7,2513.8,7.221]
[1751238032838,1.115,2514.2,2514.0,0.1984]
[1751238033149,1.115,2514.2,2514.0,0.1586]
[1751238033376,1.115,2514.2,2513.8,0.1984]
[1751238033582,1.115,2514.2,2513.1,2.38748955]
[1751238033778,1.4651281,2514.2,2513.6,7.224]
[1751238033946,1.115,2514.2,2514.0,2.38658245]
[1751238034462,1.115,2514.2,2514.1,2.38653991]
[1751238034642,1.1,2514.7,2513.9,12.38672978]
[1751238034849,1.1,2514.7,2513.7,10.0]
[1751238035037,1.1,2514.7,2513.8,10.0]
[1751238035240,0.3157,2514.6,2513.8,10.0]
[1751238035441,1.1,2514.7,2514.1,2.38645606]
[1751238035656,1.1,2514.7,2514.2,2.38641462]
[1751238035935,1.1,2514.7,2514.2,2.38636249]
[1751238036366,1.1,2514.7,2514.0,10.0]
[1751238036543,0.001,2514.7,2514.6,2.38606537]
[1751238036949,0.001,2514.7,2512.8,0.2]
[1751238037151,0.001,2514.7,2514.5,2.38615916]
[1751238037339,0.001,2514.7,2514.6,12.38606537]
[1751238038575,0.001,2514.7,2514.5,10.0]
[1751238038774,1.1807,2514.6,2513.3,10.0]
[1751238038959,1.1807,2514.0,2513.5,2.38709832]
[1751238039166,3.2377,2514.0,2513.1,10.0]
[1751238039366,0.001,2514.7,2514.6,2.38606537]
[1751238040152,0.001,2514.7,2514.6,12.38606537]
[1751238040481,0.001,2514.7,2514.6,30.01642137]
[1751238040650,0.001,2514.7,2514.6,21.82730837]
[1751238040859,0.001,2514.7,2514.6,24.06200737]
[1751238041268,0.001,2514.7,2514.6,14.41398237]
[1751238041594,0.001,2514.7,2514.1,2.68387789]
[1751238041595,1.0894,2514.7,2513.8,2.38678493]
[1751238041801,1.0894,2514.7,2514.3,2.38628395]
[1751238041942,1.0894,2514.7,2514.3,2.3862755]
[1751238042140,5.61545771,2514.7,2514.0,0.002]
[1751238042375,2.38622407,2514.5,2514.0,0.002]
[1751238042691,2.14,2514.4,2514.0,0.002]
[1751238043574,0.1984,2514.3,2514.0,0.002]
[1751238043775,3.46750464,2514.2,2514.0,0.002]
[1751238044076,4.52627584,2514.4,2513.2,0.1984]
[1751238044077,1.2794,2514.0,2513.2,0.1984]
[1751238044285,0.1984,2513.9,2513.5,0.1984]
[1751238044445,3.221,2514.0,2513.9,2.38672978]
[1751238044648,1.4031,2514.0,2512.9,2.38762652]
[1751238044947,1.1784,2513.8,2513.4,2.38720342]
[1751238045286,1.1784,2513.8,2513.5,2.38710208]
[1751238045646,1.1784,2513.8,2513.4,2.38717122]
[1751238045852,1.1784,2513.8,2513.5,2.38710343]
[1751238046050,2.14,2513.7,2513.6,2.38701464]
[1751238046251,2.14,2513.7,2512.5,3.48052862]
[1751238046450,2.47184,2513.7,2512.7,10.13463072]
[1751238046650,2.47184,2513.7,2513.3,2.3872299]
[1751238046957,2.47184,2513.7,2513.5,2.3870223]
[1751238047159,0.33184,2513.7,2513.5,2.3870223]
[1751238047376,2.14,2513.6,2513.5,2.3870223]
[1751238047552,2.14,2513.6,2513.5,2.3871096]
[1751238047752,1.1784,2513.8,2513.6,2.38695538]
[1751238047968,1.1784,2513.8,2512.8,10.0]
[1751238047969,2.14,2513.7,2513.3,2.38725778]
[1751238048173,2.14,2513.7,2512.9,2.38764229]
[1751238048349,0.33184,2513.6,2513.3,2.38721532]
[1751238048549,0.33184,2513.6,2513.5,2.3871096]
[1751238049080,0.33184,2513.6,2512.6,7.277]
[1751238049081,2.47184,2513.6,2513.3,2.38724553]
[1751238049249,1.1061,2513.5,2513.4,2.38720458]
[1751238049588,3.2461,2513.5,2513.4,2.38720458]
[1751238049950,12.32626036,2514.4,2513.8,2.38674732]
[1751238050152,4.54242604,2514.3,2513.8,2.38675906]
[1751238050388,1.1581,2514.1,2512.6,1.09251206]
[1751238050682,1.1581,2513.6,2513.3,2.38726913]
[1751238050851,1.1581,2513.6,2513.4,2.38717518]
[1751238051056,2.14,2513.5,2512.7,1.09251206]
[1751238051382,1.077,2513.3,2512.6,2.38796465]
[1751238051556,1.077,2513.3,2512.7,0.34805482]
[1751238051757,2.14,2513.2,2512.6,2.3878929]
[1751238052061,2.14,2513.2,2512.3,1.09251206]
[1751238052252,1.077,2513.0,2512.4,0.3490124]
[1751238052449,1.1006,2512.4,2512.1,1.09251206]
[1751238052655,5.62876082,2512.4,2512.2,0.34916612]
[1751238052848,1.66347608,2512.4,2512.3,0.34913207]
[1751238053101,1.1006,2512.4,2512.3,2.73731311]
[1751238053296,1.1006,2512.4,2511.8,1.09251206]
[1751238053582,1.1006,2512.4,2511.2,1.61484281]
[1751238053583,3.48964368,2511.5,2511.2,1.61484281]
[1751238053801,5.62964173,2511.5,2511.2,1.61484281]
[1751238054098,5.62964173,2511.5,2510.5,0.002]
[1751238054099,1.1078,2511.1,2510.5,0.002]
[1751238054274,1.1078,2510.3,2509.9,1.45668275]
[1751238054494,1.1078,2510.3,2509.8,1.45668275]
[1751238054495,3.2488,2510.3,2509.8,1.45668275]
[1751238054703,0.1984,2510.1,2510.0,2.39043824]
[1751238054875,2.38965495,2510.9,2510.0,2.39034653]
[1751238055075,0.1984,2510.5,2510.0,0.1984]
[1751238055293,2.39026879,2510.2,2509.4,2.39298013]
[1751238055495,2.141,2510.1,2509.4,0.002]
[1751238055706,2.38986863,2510.6,2509.6,2.39075234]
[1751238055914,8.8796403,2511.3,2509.4,0.002]
[1751238056209,2.38960018,2510.9,2510.1,2.39031937]
[1751238056372,2.38985007,2510.7,2510.0,2.39035895]
[1751238056571,0.23896002,2510.8,2510.1,2.39027083]
[1751238056797,2.141,2511.2,2510.1,2.39027083]
[1751238056999,4.53032441,2511.2,2510.0,2.39041697]
[1751238057199,2.141,2511.2,2509.7,10.0]
[1751238057398,9.944,2511.6,2510.6,2.38979071]
[1751238057603,9.944,2511.6,2509.7,10.0]
[1751238057604,2.38920081,2511.3,2510.5,2.38994064]
[1751238057804,2.49503008,2511.2,2510.1,2.39031201]
[1751238057977,1.1411,2511.4,2510.3,2.39015257]
[1751238058182,1.1411,2511.4,2510.9,2.38953612]
[1751238058381,1.1411,2511.4,2510.0,14.53238977]
[1751238058382,5.67226881,2511.4,2510.7,2.38969122]
[1751238058608,5.67221076,2511.4,2510.5,2.38989767]
[1751238058789,2.95644037,2511.3,2510.4,2.39003786]
[1751238059112,2.142,2511.2,2510.8,2.38959789]
[1751238059301,2.142,2511.2,2510.3,2.39012014]
[1751238059503,2.142,2511.2,2510.8,2.38963646]
[1751238059810,2.142,2511.2,2510.3,2.39012014]
[1751238059811,2.142,2511.2,2510.2,10.0]
[1751238059986,2.142,2511.2,2510.5,2.38994684]
[1751238059987,4.53129689,2511.2,2510.5,2.38994684]
[1751238060178,2.94815283,2511.2,2510.6,2.38984812]
[1751238060379,2.94815283,2511.2,2510.2,10.0]
[1751238060380,2.142,2511.1,2510.5,2.38989117]
[1751238060605,1.1411,2511.4,2509.9,7.489186]
[1751238060775,1.1411,2511.4,2509.8,1.1685]
[1751238060776,2.142,2511.3,2511.0,2.3894695]
[1751238061175,9.944,2511.6,2511.1,2.3893669]
[1751238061378,1.1462,2511.9,2510.7,10.0]
[1751238061578,1.1462,2511.9,2511.4,2.38907693]
[1751238061778,1.71387129,2511.9,2511.4,2.38907693]
[1751238062005,2.38896961,2511.6,2510.5,10.0]
[1751238062206,2.142,2511.6,2511.3,2.38915467]
[1751238062408,2.142,2511.6,2511.0,2.38945675]
[1751238062578,2.142,2511.6,2510.4,7.31]
[1751238062579,2.142,2511.6,2511.1,2.38938006]
[1751238062774,2.142,2511.6,2510.7,2.3897028]
[1751238062775,2.38918035,2511.4,2510.7,2.3897028]
[1751238062982,2.3562,2511.5,2510.8,2.38963058]
[1751238063181,2.38921193,2511.3,2510.6,2.38978539]
[1751238063379,2.38921193,2511.3,2510.1,7.313]
[1751238063380,1.1758,2510.5,2509.9,2.39053348]
[1751238063589,1.1758,2510.5,2509.8,0.002]
[1751238063813,0.35657236,2510.4,2509.8,0.002]
[1751238064013,2.39091452,2509.5,2509.4,0.002]
[1751238064200,19.4947403,2509.5,2508.4,2.49406446]
[1751238064404,19.4947403,2509.5,2507.4,5.92393456]
[1751238064405,8.8796403,2509.0,2507.8,2.26230143]
[1751238064605,8.8796403,2509.0,2507.5,1.0894]
[1751238064606,2.142,2508.9,2507.5,3.35170143]
[1751238064802,1.10216403,2508.8,2507.6,2.39272611]
[1751238065006,1.10216403,2508.8,2507.5,3.35170143]
[1751238065007,2.142,2508.7,2507.7,2.26230143]
[1751238065193,0.1992,2508.1,2507.7,2.46150143]
[1751238065396,0.1992,2508.6,2508.1,0.1992]
[1751238065720,1.3593,2508.9,2508.7,2.39159793]
[1751238066015,16.2026403,2509.9,2508.7,2.39159793]
[1751238066016,0.1992,2509.4,2508.9,10.0]
[1751238066214,1.1601,2510.0,2509.6,2.39073881]
[1751238066215,0.1992,2509.7,2509.6,2.39073881]
[1751238066623,9.955,2510.4,2509.6,0.1992]
[1751238066822,9.955,2510.4,2510.1,2.39033882]
[1751238066990,9.955,2510.4,2509.5,7.326]
[1751238067189,9.955,2510.4,2510.3,2.39015257]
[1751238067985,1.1601,2510.5,2510.4,2.39005736]
[1751238068195,1.1601,2511.0,2510.3,2.39015257]
[1751238068396,0.1984,2510.8,2510.7,2.38974786]
[1751238069090,0.1984,2510.8,2510.3,0.1984]
[1751238069288,1.1601,2511.0,2510.2,2.39021761]
[1751238069498,2.177,2510.9,2510.4,2.38999217]
[1751238069694,0.1984,2510.6,2510.2,2.58862972]
[1751238069921,2.74965637,2510.9,2510.4,2.39004039]
[1751238070126,0.1984,2510.4,2510.0,0.1992]
[1751238070318,2.177,2510.6,2510.3,2.39008695]
[1751238070493,0.1984,2510.5,2510.3,2.39008695]
[1751238070697,2.177,2510.6,2510.2,2.39023813]
[1751238070897,0.1984,2510.3,2510.2,2.39023813]
[1751238071116,0.1984,2510.3,2509.9,0.1992]
[1751238071117,0.1984,2510.3,2510.1,2.39033569]
[1751238071324,0.1984,2510.3,2510.2,2.39024778]
[1751238072110,0.1984,2510.3,2509.9,0.1992]
[1751238072431,0.1984,2510.3,2510.2,2.39024778]
[1751238072605,0.1984,2510.3,2510.1,2.39031409]
[1751238072805,1.2533,2510.2,2509.1,1.1946]
[1751238073036,0.1992,2509.8,2509.7,2.39065987]
[1751238074632,2.177,2510.3,2509.7,2.39065987]
[1751238074633,1.2098,2510.8,2510.1,2.39025956]
[1751238074835,2.177,2510.3,2509.7,0.1992]
[1751238075040,2.177,2510.3,2509.2,10.001]
[1751238075041,1.2098,2510.2,2509.2,0.001]
[1751238075211,0.1992,2509.6,2509.3,2.39102519]
[1751238075405,2.177,2509.6,2509.2,0.001]
[1751238075732,0.1992,2509.3,2509.2,0.001]
[1751238075932,2.3762,2509.3,2509.2,0.001]
[1751238076120,2.3762,2509.3,2509.2,2.39220038]
[1751238076321,0.1992,2509.3,2509.2,2.39220038]
[1751238076524,2.177,2509.5,2509.4,2.3910098]
[1751238076717,1.2024,2509.9,2509.5,2.39091452]
[1751238076718,0.1992,2509.6,2509.5,2.39091452]
[1751238076907,0.1992,2509.6,2509.4,2.3909767]
[1751238077111,0.1992,2509.6,2509.3,2.39108341]
[1751238077432,0.1992,2509.6,2509.2,0.001]
[1751238077617,0.1992,2509.6,2509.5,2.39091452]
[1751238078219,0.1992,2509.6,2509.4,2.39198181]
[1751238078826,2.177,2510.0,2509.8,2.39061353]
[1751238079138,2.177,2510.0,2509.6,2.39079412]
[1751238079139,0.1992,2509.9,2509.6,2.39079412]
[1751238079337,0.1992,2509.9,2509.7,2.39071526]
[1751238079845,0.1992,2509.9,2509.7,2.39072092]
[1751238080051,0.1984,2510.4,2510.3,2.39014911]
[1751238080355,1.2052,2511.3,2510.4,10.0]
[1751238080521,0.1984,2510.9,2510.8,2.38960977]
[1751238081049,0.1984,2511.1,2510.9,2.38949905]
[1751238081249,2.38968149,2510.8,2510.2,2.45900665]
[1751238081416,0.1984,2510.4,2510.3,2.39009919]
[1751238081754,0.1984,2511.0,2510.9,2.38958142]
[1751238081929,0.002,2511.9,2510.9,2.38958142]
[1751238081930,0.002,2511.9,2511.8,23.96766821]
[1751238082135,0.29629046,2512.9,2512.8,2.38777459]
[1751238082336,0.29629046,2512.9,2512.8,45.47831559]
[1751238082648,0.001,2513.7,2512.9,27.70738357]
[1751238082864,0.001,2513.7,2512.9,23.45695057]
[1751238083172,0.001,2513.7,2512.9,19.75467957]
[1751238083379,2.38749417,2513.1,2512.5,2.23328273]
[1751238083519,2.38798175,2513.7,2512.5,2.23328273]
[1751238083520,0.24094942,2513.0,2512.5,2.38797757]
[1751238083860,0.002,2513.0,2511.8,10.0]
[1751238084155,0.002,2513.0,2512.2,10.0]
[1751238084359,0.002,2513.0,2511.8,2.23328273]
[1751238084518,4.5637505,2512.9,2511.9,7.365]
[1751238084720,2.38778119,2512.8,2511.9,7.365]
[1751238084960,2.84427735,2512.7,2512.0,10.0]
[1751238085129,2.3880523,2512.6,2512.0,10.0]
[1751238085461,0.45637812,2512.7,2511.9,7.361]
[1751238085620,4.56368618,2512.9,2511.9,7.361]
[1751238085823,2.38786962,2512.7,2511.5,7.357]
[1751238086028,2.38786962,2512.7,2510.9,2.38950183]
[1751238086029,2.38872761,2511.8,2510.9,2.38950183]
[1751238086229,2.3888402,2511.7,2511.0,7.356]
[1751238086462,2.38898366,2511.6,2511.0,7.359]
[1751238086632,2.38898366,2511.6,2510.5,9.952]
[1751238086633,3.423,2511.8,2510.5,12.34189105]
[1751238086834,0.23889837,2511.6,2510.7,2.38977177]
[1751238087059,0.23889837,2511.6,2510.6,7.356]
[1751238087358,2.38901055,2511.5,2510.7,2.59843383]
[1751238087545,2.38901055,2511.5,2510.7,2.38970258]
[1751238087758,2.38901055,2511.5,2510.7,12.38970258]
[1751238088056,2.3890397,2511.5,2510.8,2.38967265]
[1751238088359,1.1949,2512.4,2510.7,10.55]
[1751238088527,1.1949,2512.4,2511.6,2.38883395]
[1751238088719,13.67261019,2512.3,2511.6,2.38883395]
[1751238089147,2.38835975,2512.2,2511.5,2.38897965]
[1751238089538,2.38835975,2512.2,2511.6,2.3889096]
[1751238089744,9.953,2512.3,2511.7,2.38877646]
[1751238089960,12.129,2512.3,2511.7,2.38877646]
[1751238090144,13.70020625,2512.3,2510.4,1.194]
[1751238090324,2.38868198,2511.9,2511.1,2.38930464]
[1751238090526,2.38868198,2511.9,2511.1,2.38931685]
[1751238090727,13.70020625,2512.3,2510.7,10.0]
[1751238090970,2.38868723,2511.9,2510.9,10.0]
[1751238091259,2.176,2511.9,2511.4,2.38908251]
[1751238091456,2.176,2511.9,2511.3,2.38915385]
[1751238091630,2.176,2511.9,2510.9,10.0]
[1751238091829,9.953,2512.3,2511.9,2.38861027]
[1751238091830,0.001,2512.3,2511.9,2.38861027]
[1751238092061,0.001,2512.3,2512.2,12.58674487]
[1751238092371,0.001,2512.3,2512.2,23.03295987]
[1751238092724,0.001,2512.3,2512.2,16.69793387]
[1751238092929,0.001,2512.3,2512.2,19.93274487]
[1751238093874,0.001,2512.3,2512.2,28.41848987]
[1751238094071,0.001,2512.3,2512.2,23.44335687]
[1751238094255,0.001,2512.3,2512.2,19.93274487]
[1751238094482,0.001,2512.3,2512.2,26.67155687]
[1751238094642,0.001,2512.3,2512.2,19.32555687]
[1751238094841,0.001,2512.3,2512.2,19.93674487]
[1751238095043,0.001,2512.3,2512.2,19.93474487]
[1751238095230,0.001,2512.3,2512.2,10.0]
[1751238096355,0.001,2512.3,2511.9,2.38856815]
[1751238096559,0.001,2512.3,2511.9,7.347]
[1751238096735,0.001,2512.3,2511.9,9.72861985]
[1751238096939,0.001,2512.3,2512.0,12.38852994]
[1751238097142,0.001,2512.3,2512.0,10.0]
[1751238097567,0.001,2512.3,2512.2,2.38834487]
[1751238097769,0.001,2512.3,2512.0,12.3884573]
[1751238097934,0.001,2512.3,2512.0,10.0]
[1751238098344,0.57738494,2512.3,2511.6,2.38887471]
[1751238098548,2.38840696,2512.2,2511.1,2.3893911]
[1751238098751,2.38861284,2512.0,2511.3,2.38914284]
[1751238099057,2.38882032,2511.7,2510.9,2.38952433]
[1751238099365,2.176,2511.6,2511.0,0.20906153]
[1751238099531,4.56497815,2511.6,2510.9,12.38951129]
[1751238099732,2.176,2511.6,2510.9,12.38955006]
[1751238099953,2.38911208,2511.4,2511.0,0.20901311]
[1751238100153,2.176,2511.6,2511.1,0.20901311]
[1751238100358,2.176,2511.6,2510.7,7.34]
[1751238100359,4.56491684,2511.6,2510.8,12.38966277]
[1751238100562,4.56491684,2511.6,2511.0,2.38942995]
[1751238100764,4.56491684,2511.6,2511.1,0.2089986]
[1751238100934,2.3890115,2511.5,2510.9,2.38954777]
[1751238101140,2.3890115,2511.5,2510.8,10.0]
[1751238101141,2.99528488,2511.6,2510.8,10.0]
[1751238101336,1.2392,2511.8,2510.8,10.0]
[1751238101547,2.194,2511.8,2510.9,0.20907882]
[1751238101761,2.194,2511.8,2511.5,2.3889438]
[1751238101934,2.194,2511.8,2511.5,12.3889438]
[1751238102139,2.194,2511.8,2511.5,10.0]
[1751238102340,2.65225526,2511.8,2510.5,10.55]
[1751238102541,2.38855855,2512.0,2511.4,2.38902814]
[1751238102740,2.38872539,2511.8,2511.2,9.71526222]
[1751238102945,2.38872521,2511.8,2511.2,7.326]
[1751238103146,2.38872521,2511.8,2511.2,9.71523586]
[1751238103365,2.38891834,2511.6,2511.2,7.326]
[1751238103664,1.1484,2511.5,2511.0,9.71848626]
[1751238103851,1.1484,2511.5,2511.1,12.38937827]
[1751238104167,1.1484,2511.5,2511.2,0.20900844]
[1751238104337,1.1484,2511.5,2511.1,10.0]
[1751238104540,1.1484,2512.2,2511.9,2.38857423]
[1751238104844,1.1484,2512.2,2511.8,2.38868528]
[1751238105249,0.1984,2512.1,2511.8,2.38868528]
[1751238105756,0.1984,2512.1,2511.7,2.38877992]
[1751238105961,0.1984,2512.1,2511.6,9.90431035]
[1751238106268,1.1484,2512.2,2511.6,9.90431035]
[1751238106269,2.194,2512.0,2511.6,2.38889715]
[1751238106576,2.194,2511.9,2511.8,2.38870387]
[1751238106791,1.1484,2512.2,2511.8,2.38872521]
[1751238106957,0.1994,2512.3,2512.2,2.38834487]
[1751238107444,2.3934,2512.3,2512.2,2.38834487]
[1751238107838,0.1994,2512.3,2512.2,2.38834487]
[1751238108036,0.001,2512.3,2512.2,9.90674487]
[1751238108267,0.001,2512.3,2512.2,10.70285983]
[1751238108638,0.001,2512.3,2512.2,20.70285983]
[1751238108842,0.001,2512.3,2512.2,25.52875983]
[1751238109172,0.001,2512.3,2512.2,25.13665983]
[1751238109350,0.001,2512.3,2512.2,54.47255983]
[1751238109779,0.001,2512.3,2512.2,14.95855983]
[1751238109980,0.001,2512.3,2512.2,32.73074283]
[1751238110271,0.001,2512.3,2512.2,30.87074283]
[1751238110576,0.001,2512.3,2512.2,24.47255983]
[1751238110784,0.001,2512.3,2512.2,21.72455983]
[1751238111549,0.001,2512.3,2512.2,23.72455983]
[1751238111746,0.001,2512.3,2512.2,21.72455983]
[1751238111947,0.001,2512.3,2512.2,14.40855983]
[1751238112189,0.001,2512.3,2512.2,21.71455983]
[1751238112965,0.002,2513.0,2512.9,33.73357276]
[1751238113260,0.001,2513.7,2513.6,10.23175118]
[1751238113464,0.001,2513.7,2513.6,10.53468618]
[1751238113665,0.001,2513.7,2513.6,20.53468618]
[1751238113959,0.001,2513.7,2513.6,51.54398618]
[1751238114508,0.001,2513.7,2513.6,51.75367734]
[1751238114981,0.001,2513.7,2513.6,51.54398618]
[1751238116453,0.001,2513.7,2513.6,44.19198618]
[1751238116652,0.001,2513.7,2513.6,30.16667818]
[1751238117183,0.001,2513.7,2513.6,13.64198618]
[1751238117483,0.001,2513.7,2513.6,3.18268618]
[1751238117659,0.001,2513.7,2513.6,10.53168618]
[1751238118982,0.001,2513.7,2513.1,1.2134]
[1751238119165,0.001,2513.7,2513.6,3.18268618]
[1751238119773,0.001,2513.7,2513.5,7.348]
[1751238119980,0.001,2513.7,2513.6,3.18268618]
[1751238120384,0.001,2513.7,2513.6,19.81062118]
[1751238120591,0.001,2513.7,2513.6,20.36062118]
[1751238121171,0.001,2514.1,2514.0,20.49860179]
[1751238121369,0.001,2514.1,2514.0,42.54485479]
[1751238121585,0.001,2514.1,2514.0,39.01385479]
[1751238121805,0.001,2514.1,2514.0,26.63326479]
[1751238122604,0.001,2514.1,2514.0,47.18807979]
[1751238122762,0.001,2514.1,2514.0,54.54307979]
[1751238123274,0.001,2514.7,2514.6,44.9953205]
[1751238123595,0.001,2514.7,2514.6,54.5463205]
[1751238123792,0.001,2514.7,2514.6,3.1814205]
[1751238123959,0.001,2514.7,2514.6,10.5374205]
[1751238124158,0.001,2514.7,2514.6,21.9321705]
[1751238124361,0.001,2514.7,2514.6,10.5424205]
[1751238124560,0.001,2514.7,2514.6,3.1814205]
[1751238124763,1.2272,2514.7,2513.9,3.18230637]
[1751238124963,0.001,2514.7,2514.6,3.1814205]
[1751238125157,0.001,2514.7,2514.6,22.6536015]
[1751238125390,0.001,2514.7,2514.6,20.5544205]
[1751238125769,0.001,2514.7,2514.6,28.0515965]
[1751238126099,0.001,2514.7,2514.6,30.0415765]
[1751238126895,0.001,2514.7,2514.6,10.5524205]
[1751238127392,0.001,2514.7,2514.6,3.1814205]
[1751238127591,0.001,2514.7,2514.6,10.5494205]
[1751238127791,0.001,2514.7,2514.6,3.1814205]
[1751238127984,0.001,2514.7,2514.6,10.5504205]
[1751238128363,0.001,2514.7,2514.4,3.18157965]
[1751238128564,1.2482,2514.6,2513.6,0.002]
[1751238128788,0.001,2514.7,2513.7,3.18255957]
[1751238128789,1.231,2514.4,2513.7,3.18255957]
[1751238128988,2.192,2514.3,2513.6,7.376]
[1751238129298,1.231,2514.4,2513.7,3.18255957]
[1751238129470,1.231,2514.4,2513.6,7.376]
[1751238129471,1.4294,2514.4,2513.9,0.1984]
[1751238129674,1.4294,2514.4,2514.3,3.1818001]
[1751238130396,0.001,2514.7,2514.3,3.1818001]
[1751238130397,0.1994,2514.7,2514.6,3.1814205]
[1751238130597,0.001,2514.7,2514.6,3.1814205]
[1751238130798,0.001,2514.7,2514.6,3.3798205]
[1751238131566,0.001,2514.7,2514.6,10.7498205]
[1751238131972,0.001,2514.7,2514.6,24.5985425]
[1751238132172,0.001,2514.7,2514.6,35.1485425]
[1751238132806,2.19503053,2514.9,2514.6,31.967122]
[1751238132981,1.2648,2517.5,2515.5,10.55]
[1751238133178,0.36722253,2516.6,2515.7,8.96262241]
[1751238133379,0.36722253,2516.6,2515.7,13.18002941]
[1751238133581,0.36722253,2516.6,2514.8,9.939]
[1751238133791,0.36722253,2516.5,2515.7,3.18002941]
[1751238133990,0.36722253,2516.6,2515.7,13.18002941]
[1751238134178,2.58522253,2516.6,2515.7,7.453]
[1751238134392,1.1506,2515.8,2514.5,10.0]
[1751238134698,1.1506,2515.8,2515.3,13.1804921]
[1751238134903,0.001,2515.8,2515.5,17.07515]
[1751238135109,0.001,2515.8,2515.7,13.18002941]
[1751238135303,0.001,2515.8,2515.7,50.63702941]
[1751238135607,0.001,2515.8,2515.7,52.45622941]
[1751238136118,0.001,2515.8,2515.7,44.99922941]
[1751238136315,0.001,2515.8,2515.7,54.66822941]
[1751238136520,0.001,2515.8,2515.7,13.18002941]
[1751238136813,0.001,2515.8,2515.7,10.64202941]
[1751238137304,0.001,2515.8,2515.7,3.18002941]
[1751238137605,0.001,2515.8,2515.7,10.64302941]
[1751238137902,0.001,2515.8,2515.7,50.13139041]
[1751238138276,0.001,2515.8,2515.7,33.18750141]
[1751238138476,0.001,2515.8,2515.7,33.73750141]
[1751238138679,0.001,2515.8,2515.7,46.35083441]
[1751238138874,0.001,2515.8,2515.7,40.06743441]
[1751238139403,0.001,2515.8,2515.7,29.59349741]
[1751238139701,0.001,2515.8,2515.7,21.84162941]
[1751238139879,0.001,2515.8,2515.7,48.03443541]
[1751238140081,0.001,2515.8,2515.7,48.03143541]
[1751238140302,0.001,2515.8,2515.7,43.41205241]
[1751238140681,0.001,2515.8,2515.7,35.94105241]
[1751238140902,0.001,2515.8,2515.7,3.18002941]
[1751238141132,0.001,2515.8,2515.5,0.002]
[1751238141421,1.2708,2515.7,2515.5,0.002]
[1751238141630,0.001,2515.8,2515.7,3.18002941]
[1751238141817,0.001,2515.8,2515.7,7.469]
[1751238142016,0.001,2515.8,2515.7,10.64902941]
[1751238142818,0.001,2515.8,2515.5,3.18226306]
[1751238143009,0.001,2515.8,2515.7,10.68702941]
[1751238143406,0.001,2515.8,2515.7,20.88542941]
[1751238144021,0.001,2515.8,2515.7,13.37842941]
[1751238144220,0.001,2515.8,2515.7,20.88342941]
[1751238144902,0.001,2515.8,2515.5,0.002]
[1751238144903,1.239,2515.8,2515.5,0.002]
[1751238145100,1.239,2515.8,2515.7,3.18002941]
[1751238145301,3.542,2515.8,2515.7,3.18002941]
[1751238146131,3.542,2515.8,2515.6,3.37849602]
[1751238146333,3.542,2515.8,2515.7,3.18002941]
[1751238146523,3.91604,2515.8,2515.5,0.002]
[1751238146725,0.1984,2515.6,2515.5,3.18227566]
[1751238147121,2.5014,2515.6,2515.5,3.18227566]
[1751238148137,1.239,2515.8,2515.5,3.18227566]
[1751238148138,1.239,2515.8,2515.7,3.18002941]
[1751238148436,1.239,2515.8,2515.5,0.002]
[1751238148437,3.542,2515.8,2515.5,0.002]
[1751238148601,0.1984,2515.6,2515.5,0.002]
[1751238149806,2.5014,2515.6,2515.5,0.002]
[1751238150004,4.3691319,2515.5,2513.7,5.28684491]
[1751238150313,1.1888,2514.9,2513.7,14.280727]
[1751238150512,2.303,2514.8,2514.4,3.18160838]
[1751238150833,1.219,2514.0,2513.6,0.002]
[1751238151032,1.219,2513.7,2513.6,0.002]
[1751238151234,3.522,2513.7,2513.6,0.002]
[1751238151915,1.219,2513.7,2513.6,0.002]
[1751238152111,3.522,2513.7,2513.6,0.002]
[1751238152532,6.70455957,2513.7,2513.6,0.002]
[1751238152742,3.522,2513.7,2513.6,0.002]
[1751238153436,5.48555957,2513.7,2513.6,0.002]